bitfinex-derivatives/quotes_SOLF0:USTF0_20250523
["timestamp","ask_amount","ask_price","bid_price","bid_amount"]
[1748027500265,0.02384389,179.98,179.97,10.86623565]
[1748027500674,0.02384389,179.98,179.97,5.5549]
[1748027502570,0.02384389,179.98,179.96,5.59355579]
[1748027503771,5.5549,179.97,179.96,0.03845579]
[1748027508580,0.02384389,179.98,179.96,0.03845579]
[1748027509578,5.5549,179.97,179.96,0.03845579]
[1748027511578,5.5549,179.97,179.96,5.3562242]
[1748027512582,5.57854389,179.98,179.96,5.3562242]
[1748027512786,0.02384389,179.98,179.96,5.3562242]
[1748027513080,0.02384389,179.98,179.97,5.31776841]
[1748027513270,5.57844389,179.98,179.97,5.31776841]
[1748027513473,0.02384389,179.98,179.97,10.87266841]
[1748027516483,0.02384389,179.98,179.97,5.31776841]
[1748027517179,5.57844389,179.98,179.97,5.31776841]
[1748027517380,0.02384389,179.98,179.97,5.31776841]
[1748027518586,5.57844389,179.98,179.97,5.31776841]
[1748027520986,5.5549,179.97,179.96,0.03845579]
[1748027530793,0.02384389,179.98,179.96,0.03845579]
[1748027533896,0.02384389,179.98,179.96,5.59355579]
[1748027534392,0.02384389,179.98,179.97,5.5549]
[1748027534894,124.1,180.05,180.04,5.5527]
[1748027535405,124.1,180.05,180.03,5.5529]
[1748027535900,124.1,180.05,179.97,5.32015645]
[1748027535901,124.1,180.05,180.02,0.03639959]
[1748027536097,124.1,180.05,180.04,5.5527]
[1748027537700,124.1,180.1,180.02,0.03639959]
[1748027537894,124.1,180.11,180.04,0.03661024]
[1748027538697,124.1,180.11,180.1,5.5509]
[1748027539204,124.1,180.15,180.09,0.04029217]
[1748027539402,129.6494,180.15,180.1,5.5506]
[1748027539797,124.1,180.15,180.11,5.5505]
[1748027539997,124.1,180.15,180.09,0.04029217]
[1748027540195,124.08,180.19,180.09,0.04029217]
[1748027540503,5.5487,180.17,180.12,0.03763136]
[1748027541001,124.08,180.19,180.12,0.03763136]
[1748027541590,5.548,180.2,180.12,5.58783136]
[1748027541794,124.08,180.22,180.12,0.03763136]
[1748027542099,124.08,180.22,180.1,129.39549587]
[1748027542100,5.5474,180.22,180.15,0.03683893]
[1748027542606,524.16,180.24,180.15,0.03683893]
[1748027542808,5.5477,180.21,180.15,5.58613893]
[1748027542995,524.16,180.24,180.15,0.03683893]
[1748027543410,5.548,180.2,180.15,0.03683893]
[1748027543807,524.16,180.24,180.15,0.03683893]
[1748027544003,5.5478,180.2,180.15,0.03683893]
[1748027544302,524.16,180.24,180.15,0.03683893]
[1748027544808,524.16,180.24,180.15,5.58603893]
[1748027545307,524.16,180.24,180.15,0.03683893]
[1748027545605,5.5483,180.19,180.15,0.03683893]
[1748027545905,524.16,180.24,180.15,0.03683893]
[1748027546106,5.548,180.2,180.15,0.03683893]
[1748027546305,129.97022685,180.24,180.15,0.03683893]
[1748027546605,5.549,180.16,180.15,0.03683893]
[1748027548802,5.5507,180.11,180.09,124.02]
[1748027549009,5.89022685,180.18,180.09,124.02]
[1748027549394,5.89022685,180.18,180.06,3.8136]
[1748027549603,5.89022685,180.15,180.03,125.8618]
[1748027549802,124.0,180.14,180.03,125.8618]
[1748027550096,5.5515,180.08,180.07,0.04258491]
[1748027550707,5.5515,180.08,180.07,8.491e-05]
[1748027551007,5.5539,180.01,179.99,129.26628325]
[1748027551203,129.89022685,180.09,179.97,1.8618]
[1748027551697,129.89022685,180.09,179.97,7.4166]
[1748027551898,0.03660568,180.05,180.01,0.03858708]
[1748027552101,5.5533,180.02,180.01,0.03858708]
[1748027554411,5.5531,180.03,180.01,0.03858708]
[1748027555111,0.03660568,180.05,180.01,0.03858708]
[1748027555610,0.03660568,180.05,180.02,5.5533]
[1748027555801,0.03660568,180.05,180.01,0.03858708]
[1748027556712,5.58910568,180.05,180.01,5.59198708]
[1748027557117,0.03660568,180.05,180.01,0.03858708]
[1748027557302,5.5531,180.03,180.01,0.03858708]
[1748027557501,0.03660568,180.05,180.01,0.03858708]
[1748027557804,5.58910568,180.05,180.01,0.03858708]
[1748027558310,0.03660568,180.05,180.01,0.03858708]
[1748027558608,0.03660568,180.05,180.03,5.5527]
[1748027559407,0.03660568,180.05,180.04,5.5527]
[1748027560006,0.03660568,180.05,180.03,5.553]
[1748027560307,0.03660568,180.05,180.01,0.03858708]
[1748027561613,0.03660568,180.05,180.02,5.5531]
[1748027562220,0.03660568,180.05,180.03,5.553]
[1748027562414,0.03660568,180.05,180.01,0.03858708]
[1748027563010,0.03660568,180.05,180.04,5.5527]
[1748027563207,124.04,180.12,180.02,1.9725]
[1748027564116,5.5511,180.1,180.05,5.5523]
[1748027564304,0.04227592,180.09,180.05,5.59231173]
[1748027565215,5.59357592,180.09,180.05,5.59231173]
[1748027565517,0.04227592,180.09,180.05,5.59231173]
[1748027565715,0.04227592,180.09,180.06,5.5521]
[1748027566419,0.04227592,180.09,180.05,0.04001173]
[1748027566819,5.59367592,180.09,180.05,5.59231173]
[1748027567015,0.04227592,180.09,180.05,0.04001173]
[1748027567419,5.59347592,180.09,180.05,0.04001173]
[1748027567917,5.59347592,180.09,180.05,5.59241173]
[1748027568219,0.04227592,180.09,180.05,0.04001173]
[1748027568716,5.5517,180.08,180.05,0.04001173]
[1748027568911,0.04227592,180.09,180.05,0.04001173]
[1748027569512,5.59357592,180.09,180.05,5.59221173]
[1748027569713,0.04227592,180.09,180.05,0.04001173]
[1748027570715,0.04227592,180.09,180.07,5.5516]
[1748027571513,0.04227592,180.09,180.08,5.5515]
[1748027572132,0.04227592,180.09,180.05,0.04001173]
[1748027572628,0.04227592,180.09,180.08,5.5515]
[1748027573938,125.522,180.16,180.11,5.5504]
[1748027573939,123.52,180.16,180.11,5.5504]
[1748027574237,123.52,180.16,180.06,162.8879]
[1748027574841,123.52,180.16,180.09,0.04124976]
[1748027575151,5.5494,180.15,180.1,5.5506]
[1748027575437,123.52,180.16,180.1,5.5506]
[1748027575642,5.5499,180.14,180.1,5.5506]
[1748027576637,5.55,180.13,180.1,5.5506]
[1748027577139,123.52,180.16,180.09,161.04124976]
[1748027578537,5.5505,180.12,180.09,161.04124976]
[1748027578738,123.52,180.16,180.09,161.04124976]
[1748027579133,123.52,180.16,180.09,166.59224976]
[1748027579134,5.55,180.13,180.09,166.59224976]
[1748027579841,123.52,180.16,180.09,166.59224976]
[1748027580339,5.55,180.13,180.09,166.59224976]
[1748027580539,123.52,180.16,180.09,161.04124976]
[1748027580932,5.5505,180.12,180.09,161.04124976]
[1748027581135,5.5505,180.12,180.09,0.04124976]
[1748027581333,5.5505,180.12,180.09,5.59244976]
[1748027581642,5.5505,180.12,180.09,0.04124976]
[1748027582241,5.5501,180.13,180.09,0.04124976]
[1748027582443,123.52,180.16,180.09,0.04124976]
[1748027582834,5.5499,180.14,180.1,5.5508]
[1748027583343,129.0691,180.16,180.11,5.5505]
[1748027583533,123.52,180.16,180.09,0.04124976]
[1748027583736,125.4814,180.21,180.09,161.04124976]
[1748027583931,125.4814,180.21,180.13,0.03796148]
[1748027584131,5.5483,180.19,180.14,5.5494]
[1748027584336,123.5,180.21,180.13,0.03796148]
[1748027584741,5.5478,180.2,180.15,5.5491]
[1748027584941,123.5,180.21,180.13,0.03796148]
[1748027585139,5.5483,180.19,180.14,5.5494]
[1748027585345,123.5,180.21,180.13,0.03796148]
[1748027585843,123.5,180.21,180.15,5.5493]
[1748027586242,5.548,180.2,180.15,5.5493]
[1748027586446,5.548,180.2,180.16,5.5489]
[1748027586640,123.5,180.21,180.13,0.03796148]
[1748027588344,5.5482,180.19,180.14,5.5494]
[1748027588848,5.5485,180.18,180.13,5.58786148]
[1748027589147,5.5485,180.18,180.13,0.03796148]
[1748027589338,123.5,180.21,180.13,0.03796148]
[1748027589539,5.5484,180.19,180.14,5.5494]
[1748027591550,5.5484,180.19,180.15,5.5493]
[1748027591849,5.5479,180.2,180.13,161.03796148]
[1748027592045,123.5,180.21,180.13,161.03796148]
[1748027592245,5.5477,180.21,180.13,161.03796148]
[1748027592446,123.48,180.24,180.14,1.8908]
[1748027592654,123.48,180.24,180.17,0.0410091]
[1748027592954,5.5481,180.19,180.17,0.0410091]
[1748027594357,123.48,180.24,180.17,0.0410091]
[1748027594945,5.5484,180.18,180.17,0.0410091]
[1748027596551,123.48,180.24,180.17,0.0410091]
[1748027597351,5.5484,180.18,180.17,0.0410091]
[1748027598748,5.5482,180.19,180.17,0.0410091]
[1748027599050,123.48,180.24,180.17,0.0410091]
[1748027600758,5.5483,180.19,180.17,0.0410091]
[1748027601163,123.48,180.24,180.17,0.0410091]
[1748027601364,5.5479,180.2,180.17,0.0410091]
[1748027601553,123.48,180.24,180.17,0.0410091]
[1748027603062,5.5481,180.2,180.17,0.0410091]
[1748027603261,123.48,180.24,180.17,0.0410091]
[1748027604456,5.5483,180.19,180.17,0.0410091]
[1748027604659,123.48,180.24,180.17,0.0410091]
[1748027604962,5.5483,180.19,180.17,0.0410091]
[1748027605462,5.5484,180.18,180.17,0.0410091]
[1748027605961,5.5484,180.19,180.17,0.0410091]
[1748027606156,123.48,180.24,180.17,0.0410091]
[1748027606469,5.5484,180.18,180.17,0.0410091]
[1748027606857,5.89022685,180.23,180.17,0.0410091]
[1748027607462,123.48,180.24,180.17,0.0410091]
[1748027607662,5.5481,180.19,180.17,0.0410091]
[1748027608164,5.5484,180.18,180.17,0.0410091]
[1748027608364,129.37022685,180.24,180.17,0.0410091]
[1748027609569,5.5484,180.19,180.17,0.0410091]
[1748027609967,129.37022685,180.24,180.17,0.0410091]
[1748027610167,5.5484,180.18,180.17,0.0410091]
[1748027610765,129.37022685,180.24,180.17,0.0410091]
[1748027611770,5.5484,180.18,180.17,0.0410091]
[1748027616768,128.5482,180.19,180.17,0.0410091]
[1748027617267,123.0,180.19,180.17,0.0410091]
[1748027617672,5.5484,180.18,180.17,0.0410091]
[1748027618868,5.89022685,180.18,180.11,5.19439282]
[1748027619062,1.9132,180.17,180.11,5.19439282]
[1748027619369,5.5503,180.12,180.11,5.19439282]
[1748027619964,5.5506,180.11,180.1,0.03691991]
[1748027623469,0.03621576,180.13,180.1,0.03691991]
[1748027624973,0.03621576,180.13,180.12,5.5503]
[1748027625979,0.03621576,180.13,180.1,0.03691991]
[1748027626475,0.03621576,180.13,180.11,5.5504]
[1748027626865,0.03621576,180.13,180.1,0.03691991]
[1748027627072,0.03621576,180.13,180.11,5.5504]
[1748027627277,5.58621576,180.13,180.1,0.03691991]
[1748027627976,5.58621576,180.13,180.11,5.29974201]
[1748027629177,0.03621576,180.13,180.11,5.29974201]
[1748027629376,0.03621576,180.13,180.1,5.58751991]
[1748027629577,0.03621576,180.13,180.11,5.5506]
[1748027632783,0.03621576,180.13,180.1,0.03691991]
[1748027633281,5.58641576,180.13,180.1,0.03691991]
[1748027633683,0.03621576,180.13,180.1,0.03691991]
[1748027633882,5.58631576,180.13,180.1,0.03691991]
[1748027634078,0.03621576,180.13,180.1,0.03691991]
[1748027634883,5.5505,180.12,180.1,0.03691991]
[1748027635084,0.03621576,180.13,180.1,0.03691991]
[1748027635577,5.5506,180.11,180.1,0.03691991]
[1748027635777,0.03621576,180.13,180.1,0.03691991]
[1748027635992,5.5506,180.12,180.1,0.03691991]
[1748027639396,5.5506,180.11,180.1,0.03691991]
[1748027642800,5.5508,180.12,180.1,0.03691991]
[1748027643100,0.03621576,180.13,180.1,0.03691991]
[1748027643303,5.551,180.11,180.1,0.03691991]
[1748027643701,5.92644261,180.13,180.02,5.6776]
[1748027643901,5.92644261,180.13,180.02,11.2312]
[1748027643902,5.5527,180.06,180.02,11.2312]
[1748027644201,122.64,180.08,179.97,122.64]
[1748027644398,122.64,180.07,179.97,122.64]
[1748027644599,5.5533,180.04,180.0,5.5543]
[1748027644799,5.59069387,180.04,180.0,5.59369568]
[1748027645100,5.5536,180.03,180.0,0.03939568]
[1748027645499,0.03739387,180.04,180.0,0.03939568]
[1748027646498,5.554,180.02,180.0,0.03939568]
[1748027646707,128.194,180.02,180.0,0.03939568]
[1748027647200,122.64,180.02,180.0,0.03939568]
[1748027649607,128.1938,180.02,180.0,0.03939568]
[1748027650407,122.64,180.02,180.0,0.03939568]
[1748027650711,5.5535,180.03,180.0,0.03939568]
[1748027651508,5.5538,180.02,180.0,0.03939568]
[1748027651807,0.03739387,180.04,180.0,0.03939568]
[1748027652410,5.5538,180.02,180.0,0.03939568]
[1748027653609,5.5541,180.01,180.0,0.03939568]
[1748027657217,5.5555,179.97,179.93,122.64]
[1748027657409,122.28,180.01,179.94,5.5562]
[1748027658116,122.28,180.01,179.93,5.5564]
[1748027658417,0.03808986,179.99,179.96,0.0417381]
[1748027658614,5.5555,179.97,179.96,0.0417381]
[1748027667924,5.89022685,179.97,179.86,161.0]
[1748027668126,122.32,179.96,179.88,162.926]
[1748027668328,5.5565,179.94,179.9,5.5574]
[1748027668828,5.5566,179.93,179.9,5.59241353]
[1748027669024,0.03602153,179.94,179.91,5.5571]
[1748027669224,0.03602153,179.94,179.9,0.03501353]
[1748027669425,5.59252153,179.94,179.9,0.03501353]
[1748027669722,5.59252153,179.94,179.9,5.59241353]
[1748027670128,5.5566,179.93,179.9,5.59241353]
[1748027670622,0.03602153,179.94,179.9,0.03501353]
[1748027671325,5.59232153,179.94,179.9,0.03501353]
[1748027671822,5.59232153,179.94,179.91,5.557]
[1748027672020,0.03602153,179.94,179.9,0.03501353]
[1748027672224,0.03602153,179.94,179.92,5.5567]
[1748027672427,5.59242153,179.94,179.9,0.03501353]
[1748027672728,0.03602153,179.94,179.91,5.557]
[1748027672922,5.5567,179.93,179.9,0.03501353]
[1748027673326,0.03602153,179.94,179.91,5.5571]
[1748027673520,5.59242153,179.94,179.91,5.5571]
[1748027674227,5.5567,179.93,179.91,5.5571]
[1748027675025,5.5567,179.93,179.9,5.59241353]
[1748027675222,5.5572,179.92,179.9,0.03501353]
[1748027675727,5.5572,179.91,179.9,0.03501353]
[1748027675922,0.03602153,179.94,179.9,0.03501353]
[1748027676930,0.03602153,179.94,179.92,5.5567]
[1748027677428,0.03602153,179.94,179.93,5.5566]
[1748027678932,122.34,179.97,179.96,5.5556]
[1748027679230,122.34,180.01,179.91,1.9155]
[1748027679422,5.5545,180.0,179.91,162.9155]
[1748027679830,122.34,180.01,179.97,5.5552]
[1748027680018,122.37875315,180.01,179.97,5.5552]
[1748027680218,122.37875315,180.01,179.94,0.03960255]
[1748027680531,127.93305315,180.01,179.94,0.03960255]
[1748027681426,122.37875315,180.01,179.94,0.03960255]
[1748027682731,5.5548,179.99,179.96,5.5554]
[1748027683431,5.5552,179.98,179.94,5.59560255]
[1748027683730,5.5552,179.98,179.94,0.03960255]
[1748027684025,5.5555,179.97,179.94,5.59570255]
[1748027684223,5.59726713,179.97,179.94,5.59570255]
[1748027684527,0.04176713,179.97,179.94,0.03960255]
[1748027684922,0.04176713,179.97,179.96,5.5556]
[1748027686423,0.04176713,179.97,179.94,0.03960255]
[1748027686731,5.5558,179.96,179.94,0.03960255]
[1748027687833,5.59716713,179.97,179.94,0.03960255]
[1748027688135,0.04176713,179.97,179.94,0.03960255]
[1748027688433,0.04176713,179.97,179.95,5.5558]
[1748027689138,0.04176713,179.97,179.96,5.5556]
[1748027689327,121.9,180.02,179.94,0.03960255]
[1748027689528,121.9,180.02,179.94,161.03960255]
[1748027689827,121.9,180.02,179.95,1.8383]
[1748027690134,5.5544,180.01,179.95,1.8383]
[1748027690328,0.04030238,180.0,179.95,1.8383]
[1748027690634,5.59470238,180.0,179.97,5.5551]
[1748027690938,5.59470238,180.0,179.95,1.8383]
[1748027691136,5.59470238,180.0,179.97,5.5552]
[1748027691434,5.59470238,180.0,179.95,1.8383]
[1748027691637,0.04030238,180.0,179.95,1.8383]
[1748027691838,0.04030238,180.0,179.98,5.5549]
[1748027693039,0.04030238,180.0,179.99,5.5547]
[1748027700444,0.04030238,180.0,179.98,0.04273184]
[1748027701043,5.59500238,180.0,179.98,5.59773184]
[1748027701338,0.04030238,180.0,179.98,0.04273184]
[1748027702343,121.88,180.06,179.98,1.91933184]
[1748027702644,5.5532,180.04,180.01,5.5539]
[1748027703338,5.59273783,180.04,180.02,5.5537]
[1748027703843,0.03953783,180.04,180.03,5.5535]
[1748027704548,0.03953783,180.04,180.02,5.5537]
[1748027704738,5.59273783,180.04,180.02,5.5537]
[1748027704939,5.59273783,180.04,180.01,0.03725247]
[1748027705247,5.59273783,180.04,180.01,5.59115247]
[1748027705754,5.59273783,180.04,180.02,5.5538]
[1748027705951,0.03953783,180.04,180.02,5.5538]
[1748027706248,0.03953783,180.04,180.01,5.59135247]
[1748027706948,5.5538,180.02,180.01,0.03725247]
[1748027708648,5.5536,180.03,180.01,0.03725247]
[1748027708849,0.03953783,180.04,180.01,0.03725247]
[1748027709347,5.5538,180.02,180.01,0.03725247]
[1748027709741,5.5537,180.03,180.01,0.03725247]
[1748027709949,0.03953783,180.04,180.01,0.03725247]
[1748027710448,5.5535,180.03,180.01,0.03725247]
[1748027711152,5.5538,180.02,180.01,0.03725247]
[1748027712252,0.03953783,180.04,180.01,0.03725247]
[1748027712253,5.5536,180.03,180.01,0.03725247]
[1748027712447,0.03953783,180.04,180.01,0.03725247]
[1748027712650,0.03953783,180.04,180.03,5.5535]
[1748027712949,0.03953783,180.04,180.01,0.03725247]
[1748027713747,5.5538,180.02,180.01,0.03725247]
[1748027722662,0.03953783,180.04,180.01,0.03725247]
[1748027722663,5.5536,180.03,180.01,0.03725247]
[1748027722966,0.03953783,180.04,180.01,5.59115247]
[1748027723163,5.59293783,180.04,180.01,5.59115247]
[1748027723565,0.03953783,180.04,180.01,0.03725247]
[1748027725060,0.03953783,180.04,180.02,5.31342836]
[1748027725265,5.59283783,180.04,180.02,5.31342836]
[1748027725466,0.03953783,180.04,180.02,5.31342836]
[1748027725865,0.03953783,180.04,180.02,10.86702836]
[1748027726261,0.03953783,180.04,180.01,0.03725247]
[1748027726470,5.5537,180.03,180.01,0.03725247]
[1748027727071,5.59283783,180.04,180.01,5.59135247]
[1748027727468,0.03953783,180.04,180.01,0.03725247]
[1748027728064,0.03953783,180.04,180.02,5.5538]
[1748027729063,5.59283783,180.04,180.02,5.5538]
[1748027729258,5.59283783,180.04,180.01,5.59125247]
[1748027729565,0.03953783,180.04,180.01,0.03725247]
[1748027729872,0.03953783,180.04,180.02,5.5536]
[1748027730174,0.03953783,180.04,180.01,0.03725247]
[1748027730472,5.59273783,180.04,180.01,5.59115247]
[1748027730771,5.59273783,180.04,180.02,5.31202833]
[1748027731475,5.59273783,180.04,180.02,10.86582833]
[1748027732076,5.59273783,180.04,180.02,5.5538]
[1748027732271,0.03953783,180.04,180.02,5.5538]
[1748027732472,0.03953783,180.04,180.01,0.03725247]
[1748027733072,0.03953783,180.04,180.02,5.5537]
[1748027734568,0.03953783,180.04,180.03,5.31272326]
[1748027735273,5.59273783,180.04,180.03,5.31272326]
[1748027735465,0.03953783,180.04,180.03,5.31272326]
[1748027735776,5.59273783,180.04,180.03,2.326e-05]
[1748027735983,0.03953783,180.04,180.01,7.573e-05]
[1748027736178,5.89022685,180.03,180.01,7.573e-05]
[1748027736373,5.5547,179.99,179.98,5.18299481]
[1748027736881,5.5553,179.97,179.96,6.91065975]
[1748027737270,0.03919551,179.98,179.95,0.03764349]
[1748027737471,5.5556,179.96,179.95,0.03764349]
[1748027742982,5.5573,179.91,179.86,121.38]
[1748027744080,0.03658059,179.9,179.87,0.04062686]
[1748027744382,0.03658059,179.9,179.88,5.5579]
[1748027745284,0.03658059,179.9,179.88,5.5581]
[1748027745480,0.03658059,179.9,179.87,0.04062686]
[1748027746784,5.59428059,179.9,179.87,0.04062686]
[1748027747085,0.03658059,179.9,179.87,0.04062686]
[1748027747285,5.558,179.89,179.87,0.04062686]
[1748027747478,0.03658059,179.9,179.87,0.04062686]
[1748027747873,5.5581,179.88,179.87,0.04062686]
[1748027750587,120.98,179.89,179.8,3.7884]
[1748027751084,5.5599,179.83,179.8,3.7884]
[1748027751582,5.59833334,179.83,179.8,3.82415314]
[1748027751787,5.5602,179.82,179.8,0.03575314]
[1748027751987,0.03843334,179.83,179.8,0.03575314]
[1748027752581,5.5603,179.81,179.8,0.03575314]
[1748027757491,0.03843334,179.83,179.8,0.03575314]
[1748027758391,5.5603,179.81,179.8,0.03575314]
[1748027758890,0.03843334,179.83,179.8,0.03575314]
[1748027759591,5.5601,179.82,179.8,0.03575314]
[1748027760394,0.03843334,179.83,179.8,5.59635314]
[1748027760594,0.03843334,179.83,179.8,0.03575314]
[1748027761682,5.5603,179.81,179.8,0.03575314]
[1748027761883,5.89022685,179.82,179.69,161.0]
[1748027762089,5.89022685,179.79,179.69,161.0]
[1748027762388,5.89022685,179.79,179.68,1.8216]
[1748027762389,121.06,179.78,179.68,1.8216]
[1748027762792,5.5633,179.72,179.71,0.0392245]
[1748027763290,5.5625,179.74,179.71,0.0392245]
[1748027763492,0.0371901,179.75,179.71,0.0392245]
[1748027764092,121.06,179.8,179.71,0.0392245]
[1748027764497,5.5621,179.76,179.71,0.0392245]
[1748027764687,121.06,179.8,179.71,0.0392245]
[1748027764883,5.5617,179.77,179.75,5.5621]
[1748027765082,0.04149818,179.78,179.74,0.04084824]
[1748027765293,121.06,179.8,179.74,0.04084824]
[1748027765496,0.04217531,179.78,179.74,0.04084824]
[1748027766892,5.5617,179.77,179.74,0.04084824]
[1748027767093,0.04217531,179.78,179.74,0.04084824]
[1748027767491,5.5621,179.75,179.74,0.04084824]
[1748027769299,126.6421,179.75,179.74,0.04084824]
[1748027772710,121.08,179.75,179.74,0.04084824]
[1748027772901,121.1,179.77,179.74,0.04084824]
[1748027773305,5.5621,179.76,179.74,0.04084824]
[1748027773805,121.1,179.77,179.74,0.04084824]
[1748027774509,0.04217531,179.78,179.74,0.04084824]
[1748027775007,0.04217531,179.78,179.74,161.04084824]
[1748027775706,0.04217531,179.78,179.75,5.5621]
[1748027776207,5.60347531,179.78,179.75,5.5621]
[1748027776807,0.04217531,179.78,179.74,161.04084824]
[1748027778608,120.66,179.77,179.74,0.04084824]
[1748027779507,5.5619,179.76,179.74,0.04084824]
[1748027779809,120.66,179.77,179.74,0.04084824]
[1748027780198,5.5621,179.75,179.74,0.04084824]
[1748027782608,5.89022685,179.76,179.68,1.8216]
[1748027782808,5.89022685,179.76,179.68,7.3858]
[1748027783215,5.5634,179.71,179.68,7.3858]
[1748027783403,5.89022685,179.76,179.69,5.5638]
[1748027783601,0.03600218,179.71,179.69,5.5638]
[1748027784312,0.03600218,179.71,179.7,5.5637]
[1748027786114,0.03600218,179.71,179.7,10.7636527]
[1748027790316,120.66,179.77,179.73,5.5627]
[1748027790519,120.66,179.77,179.7,166.1999527]
[1748027790815,400.6,179.8,179.7,166.1999527]
[1748027791416,0.03984936,179.77,179.73,0.04031048]
[1748027791916,5.5627,179.74,179.73,0.04031048]
[1748027793428,5.5622,179.75,179.73,0.04031048]
[1748027794115,0.03984936,179.77,179.73,0.04031048]
[1748027795322,5.5623,179.75,179.73,0.04031048]
[1748027795618,0.03984936,179.77,179.73,0.04031048]
[1748027796724,5.5624,179.75,179.73,0.04031048]
[1748027796915,0.03984936,179.77,179.73,0.04031048]
[1748027797122,120.68,179.76,179.73,0.04031048]
[1748027797525,5.5624,179.74,179.73,0.04031048]
[1748027798221,5.564,179.69,179.68,166.18919099]
[1748027798425,5.564,179.69,179.68,5.18919099]
[1748027799416,5.564,179.69,179.68,5.23045076]
[1748027799916,0.04191698,179.7,179.68,5.23045076]
[1748027800820,0.04191698,179.7,179.69,5.564]
[1748027801127,0.04191698,179.7,179.69,10.79445076]
[1748027801329,0.04191698,179.7,179.69,5.23045076]
[1748027802026,0.04191698,179.7,179.69,10.79445076]
[1748027802528,0.04191698,179.7,179.69,5.23045076]
[1748027803525,0.04191698,179.7,179.69,10.79445076]
[1748027806232,0.04191698,179.7,179.69,5.23045076]
[1748027807430,0.04191698,179.7,179.69,10.79445076]
[1748027810042,0.04191698,179.7,179.69,5.23045076]
[1748027811738,0.04191698,179.7,179.69,10.79445076]
[1748027812145,0.04191698,179.7,179.69,5.23045076]
[1748027812746,5.60561698,179.7,179.69,5.23045076]
[1748027813237,0.04191698,179.7,179.69,5.23045076]
[1748027815744,0.04191698,179.7,179.69,10.79445076]
[1748027816246,0.04191698,179.7,179.69,5.23045076]
[1748027817539,5.60561698,179.7,179.69,5.23045076]
[1748027818746,0.04191698,179.7,179.69,5.23045076]
[1748027819139,0.04191698,179.7,179.69,166.23045076]
[1748027819444,120.68,179.74,179.69,166.23045076]
[1748027819947,5.5629,179.73,179.7,5.5635]
[1748027820245,0.03618018,179.73,179.69,166.23045076]
[1748027820554,0.03618018,179.73,179.7,5.23045076]
[1748027820939,5.5632,179.72,179.7,5.23045076]
[1748027821440,0.03618018,179.73,179.7,5.23045076]
[1748027821746,5.5634,179.72,179.71,5.23045076]
[1748027821946,0.03618018,179.73,179.71,5.23045076]
[1748027823146,0.03618018,179.73,179.72,10.79355076]
[1748027823348,0.03618018,179.73,179.72,5.23045076]
[1748027824354,5.59898018,179.73,179.72,5.23045076]
[1748027824649,0.03618018,179.73,179.72,10.79355076]
[1748027824849,5.5618,179.77,179.72,5.23045076]
[1748027825038,120.28,179.78,179.72,166.23045076]
[1748027825242,120.28,179.78,179.72,271.97045076]
[1748027825445,120.28,179.82,179.72,271.97045076]
[1748027825843,0.04130573,179.79,179.78,5.5611]
[1748027827947,0.04130573,179.79,179.78,10.79155076]
[1748027828647,120.26,179.88,179.78,166.23045076]
[1748027828847,120.26,179.88,179.78,271.95045076]
[1748027829049,5.5588,179.86,179.78,271.95045076]
[1748027829261,120.26,179.88,179.78,271.95045076]
[1748027829554,0.0394757,179.85,179.81,0.04085506]
[1748027830056,5.5597,179.83,179.81,0.04085506]
[1748027830258,0.0394757,179.85,179.81,0.04085506]
[1748027830555,5.56,179.82,179.81,0.04085506]
[1748027841569,5.56,179.82,179.81,5.506e-05]
[1748027841758,126.13022685,179.83,179.72,5.18919099]
[1748027841957,5.89022685,179.8,179.72,5.18919099]
[1748027842367,5.5628,179.73,179.72,5.18919099]
[1748027843473,5.60516361,179.74,179.72,5.18919099]
[1748027843665,5.60516361,179.74,179.71,0.04200979]
[1748027844173,5.60516361,179.74,179.71,5.60530979]
[1748027844773,0.04266361,179.74,179.72,5.563]
[1748027845672,0.04266361,179.74,179.71,5.60530979]
[1748027845978,5.60516361,179.74,179.71,5.60530979]
[1748027847977,5.5628,179.73,179.71,0.04200979]
[1748027848177,0.04266361,179.74,179.71,0.04200979]
[1748027849476,5.60526361,179.74,179.71,5.60520979]
[1748027849669,0.04266361,179.74,179.71,0.04200979]
[1748027850682,5.5628,179.73,179.71,0.04200979]
[1748027851080,0.04266361,179.74,179.71,0.04200979]
[1748027851278,5.5631,179.72,179.71,0.04200979]
[1748027856779,5.5631,179.72,179.71,9.79e-06]